fUSD/lending_fUSD_20250511
["ID","MTS","AMOUNT","RATE_DAILY","PERIOD"]
[360768221,1746999047746,-406.10945702,0.00014998,2]
[360768222,1746999047755,-634.19054298,0.00014999,2]
[360768223,1746999047766,-5200.0,0.00014999,2]
[360768224,1746999047834,-33490.21234996,0.00014999,2]
[360768225,1746999047854,-500.0,0.00014999,2]
[360769754,1746999178457,163.91,0.00014198,2]
[360769755,1746999324630,1000.0,0.00014139,2]
[360769756,1746999445753,1000.0,0.00013699,2]
[360769757,1746999543398,845.06,0.00014062,2]
[360769758,1746999747840,23900.0,0.00014076,2]
[360769759,1746999752209,2525.49,0.00014062,2]
[360769760,1746999759460,500.0,0.00014075,2]
[360769761,1746999759530,500.0,0.00014075,2]
[360769762,1746999759619,500.0,0.00014075,2]
[360769763,1746999759664,500.0,0.00014075,2]
[360769764,1746999759729,500.0,0.00014075,2]
[360769765,1746999759793,500.0,0.00014075,2]
[360769766,1746999759863,500.0,0.00014075,2]
[360769767,1746999759915,500.0,0.00014075,2]
[360769768,1746999759978,500.0,0.00014075,2]
[360769769,1746999760036,500.0,0.00014075,2]
[360769770,1746999760077,500.0,0.00014075,2]
[360769771,1746999760119,500.0,0.00014075,2]
[360769772,1746999760209,500.0,0.00014075,2]
[360769773,1746999760348,500.0,0.00014075,2]
[360769774,1746999760387,241.43620496,0.00014075,2]
[360769775,1746999760732,500.0,0.00014075,2]
[360769776,1746999760775,500.0,0.00014075,2]
[360769777,1746999760839,500.0,0.00014075,2]
[360769778,1746999760907,500.0,0.00014075,2]
[360769779,1746999761553,500.0,0.00014075,2]
[360769780,1746999761598,500.0,0.00014075,2]
[360769781,1746999761655,500.0,0.00014075,2]
[360769782,1746999761717,500.0,0.00014075,2]
[360769783,1746999761762,500.0,0.00014075,2]
[360769784,1746999761807,500.0,0.00014075,2]
[360769785,1746999761939,500.0,0.00014075,2]
[360769786,1746999761987,500.0,0.00014075,2]
[360769787,1746999762078,500.0,0.00014075,2]
[360769788,1746999762126,500.0,0.00014075,2]
[360769789,1746999762245,500.0,0.00014075,2]
[360769790,1746999762327,230.11064921,0.00014075,2]
[360769791,1746999762359,269.88935079,0.00014075,2]
[360769792,1746999778626,168.88348386,0.00014075,2]
[360769793,1746999784676,500.0,0.00014075,2]
[360769794,1746999784764,500.0,0.00014075,2]
[360769795,1746999784818,500.0,0.00014075,2]
[360769796,1746999784867,500.0,0.00014075,2]
[360769797,1746999784918,500.0,0.00014075,2]
[360769798,1746999785031,500.0,0.00014075,2]
[360769799,1746999785088,500.0,0.00014075,2]
[360769800,1746999785128,550.0,0.00014075,2]
[360769801,1746999922799,158.28,0.00014075,2]
[360769802,1746999925970,1643.38,0.00012196,2]
[360769803,1746999937838,5192.51,0.00013699,2]
[360769804,1746999938097,3005.83,0.00013699,2]
[360769805,1746999938118,2186.68,0.00013699,2]
[360769806,1746999938649,220.21738886,0.00013699,2]
[360769807,1746999938670,4972.29261114,0.00013699,2]
[360769808,1746999939111,2841.02738886,0.00013699,2]
[360769809,1746999939132,2351.48261114,0.00013699,2]
[360769810,1746999939671,5192.51,0.00013699,2]
[360769811,1746999940082,2456.00738886,0.00013699,2]
[360769812,1746999940102,2736.50261114,0.00013699,2]
[360769813,1746999940769,5192.51,0.00013699,2]
[360769826,1746999941359,2070.98738886,0.00013699,2]
[360769828,1746999941381,3121.52261114,0.00013699,2]
[360769846,1746999941867,5192.51,0.00013699,2]
[360769857,1746999942151,1685.96738886,0.00013699,2]
[360769859,1746999942173,3506.54261114,0.00013699,2]
[360769873,1746999942549,5192.51,0.00013699,2]
[360769889,1746999942979,1300.94738886,0.00013699,2]
[360769891,1746999943002,3891.56261114,0.00013699,2]
[360769925,1746999944243,5192.51,0.00013699,2]
[360769926,1746999944714,915.92738886,0.00013699,2]
[360769927,1746999944741,4276.58261114,0.00013699,2]
[360769928,1746999949274,5192.51,0.00013699,2]
[360769929,1746999949793,5192.51,0.00013699,2]
[360769930,1746999950776,5192.51,0.00013699,2]
[360769931,1746999951101,5192.51,0.00013699,2]
[360769932,1746999951579,5192.51,0.00013699,2]
[360769933,1746999951937,5192.65880458,0.00013699,2]
[360770023,1747000232360,-1200.0,0.00014457,2]
[360770024,1747000232369,-300.0,0.00014457,2]
[360770025,1747000232379,-300.0,0.00014457,2]
[360770026,1747000232388,-500.0,0.00014458,2]
[360770027,1747000232398,-500.0,0.00014458,2]
[360770028,1747000232407,-500.0,0.00014458,2]
[360770029,1747000232417,-577.33927047,0.00014458,2]
[360770030,1747000232427,-500.0,0.00014458,2]
[360770031,1747000232436,-189.42548706,0.00014459,2]
[360770032,1747000232448,-1453.95451294,0.00014459,2]
[360770033,1747000232458,-250.0,0.00014629,2]
[360770034,1747000232467,-226.6551,0.000148,2]
[360770035,1747000232476,-1403.62574195,0.000148,2]
[360770036,1747000232489,-214.11475805,0.000148,2]
[360770037,1747000232498,-740.88059788,0.0001489,2]
[360770038,1747000232507,-95.00464407,0.00014899,2]
[360770039,1747000232539,-54.99535593,0.00014899,2]
[360770040,1747000232553,-500.0,0.00014899,2]
[360770041,1747000232562,-602.23363195,0.00014899,2]
[360770042,1747000232571,-420.81210308,0.00014899,2]
[360770043,1747000232583,-79.18789692,0.00014899,2]
[360770044,1747000232592,-581.34473677,0.00014899,2]
[360770045,1747000232601,-377.6973,0.000149,2]
[360770046,1747000232611,-5583.07647476,0.000149,2]
[360770047,1747000232622,-192.34921943,0.000149,2]
[360770048,1747000232632,-372.10902556,0.000149,2]
[360770049,1747000232641,-12500.0,0.000149,2]
[360770050,1747000232650,-190.78567091,0.000149,2]
[360770051,1747000232659,-178.71621118,0.000149,2]
[360770052,1747000232669,-428.69600817,0.000149,2]
[360770053,1747000232678,-7856.71375033,0.000149,2]
[360770054,1747000232689,-11732.2999813,0.000149,2]
[360770055,1747000232699,-1015.7580093,0.00014924,2]
[360770056,1747000232708,-509.3859,0.00014925,2]
[360770057,1747000232717,-160.35527712,0.00014973,2]
[360770058,1747000232727,-500.0,0.00014973,2]
[360770059,1747000232736,-527.4996018,0.00014973,2]
[360770060,1747000232746,-170.24178133,0.00014973,2]
[360770061,1747000232755,-500.0,0.00014973,2]
[360770062,1747000232764,-500.0,0.00014973,2]
[360770063,1747000232773,-167.80395039,0.00014973,2]
[360770064,1747000232783,-500.0,0.00014973,2]
[360770065,1747000232793,-163.94,0.00014978,2]
[360770066,1747000232803,-668.65185757,0.00014991,2]
[360770067,1747000232813,-929.0,0.00014998,2]
[360770068,1747000232822,-1304.0,0.00014998,2]
[360770069,1747000232832,-798.0,0.00014998,2]
[360770070,1747000232841,-627.0,0.00014998,2]
[360770071,1747000232850,-1145.0,0.00014998,2]
[360770072,1747000232859,-5938.0,0.00014998,2]
[360770073,1747000232869,-1256.629,0.00014998,2]
[360770074,1747000232878,-918.0,0.00014998,2]
[360770075,1747000232887,-1455.0,0.00014998,2]
[360770076,1747000232896,-583.0,0.00014998,2]
[360770077,1747000232905,-552.0,0.00014998,2]
[360770078,1747000232915,-154.0,0.00014998,2]
[360770079,1747000232924,-879.0,0.00014998,2]
[360770080,1747000232934,-6816.0,0.00014998,2]
[360770081,1747000232943,-835.0,0.00014998,2]
[360770082,1747000232952,-321.08744799,0.00014999,2]
[360770083,1747000232962,-200.0,0.00014999,2]
[360770084,1747000232971,-200.0,0.00014999,2]
[360770085,1747000232980,-300.0,0.00014999,2]
[360770086,1747000232989,-300.0,0.00014999,2]
[360770087,1747000232998,-300.0,0.00014999,2]
[360770088,1747000233007,-656.0,0.00015,2]
[360770089,1747000233016,-500.36014946,0.00015,2]
[360770090,1747000233025,-105136.43205556,0.00015,2]
[360770091,1747000233075,-739.489561,0.00015,2]
[360770092,1747000233607,-4542.26588135,0.00015,2]
[360770108,1747000238752,-500.0,0.00014998,2]
[360770109,1747000238806,-515.55170183,0.00014998,2]
[360770110,1747000238867,-3010.44829817,0.00014998,2]
[360770111,1747000238877,-94168.30835761,0.00015,2]
[360770112,1747000238919,-1782.044,0.00015,2]
[360770122,1747000240794,-1520.9355887,0.000149,2]
[360770123,1747000240860,-30520.69142144,0.000149,2]
[360770124,1747000240938,-312.04417944,0.000149,2]
[360770125,1747000240949,-387.365766,0.000149,2]
[360770126,1747000241238,-41.11762122,0.000149,2]
[360770127,1747000241250,-3094.37765937,0.000149,2]
[360770136,1747000243804,-19926.780177,0.000149,2]
[360770137,1747000243813,-897.219823,0.00015,2]
[360770138,1747000243825,-1459.680026,0.00015,2]
[360770140,1747000243843,-1426.13691535,0.00015,2]
[360770143,1747000243883,-337.1,0.00015,2]
[360770469,1747000247079,-358.08614996,0.000149,2]
[360770471,1747000247090,-242.0,0.00014998,2]
[360770473,1747000247099,-198.0,0.00014998,2]
[360770475,1747000247108,-6941.90488504,0.00015,2]
[360770477,1747000247119,-4362.29840756,0.00015,2]
[360770903,1747000317463,1000.0,0.00014194,2]
[360770904,1747000345428,250.0,0.00014133,2]
[360770908,1747000591729,950.0,0.00013699,2]
[360770909,1747000718871,1276.79,0.00014059,2]
[360770910,1747000979065,200.0,0.00013983,2]
[360770911,1747001002754,23900.0,0.00013974,2]
[360770912,1747001003728,-166.78,0.00014226,2]
[360770913,1747001027804,1542.71,0.00012053,2]
[360770929,1747001183511,158.14,0.00013986,2]
[360770935,1747001318634,150.0,0.00014201,2]
[360771019,1747001349233,250.0,0.00013965,2]
[360771043,1747001431602,-286.37103005,0.00014241,2]
[360771044,1747001431612,-269.29409299,0.00014241,2]
[360771045,1747001431622,-250.0,0.00014242,2]
[360771046,1747001431632,-1222.09487696,0.00014242,2]
[360771047,1747001431698,-477.66512304,0.00014242,2]
[360771048,1747001431709,-1434.22470779,0.00014317,2]
[360771049,1747001431735,-108.48529221,0.00014317,2]
[360771050,1747001431745,-173.4,0.00014384,2]
[360771051,1747001431755,-12176.83469524,0.00014642,2]
[360771052,1747001431764,-500.0,0.00014712,2]
[360771053,1747001431774,-207.4,0.00014856,2]
[360771054,1747001431783,-1200.0,0.00014864,2]
[360771055,1747001431792,-300.0,0.00014864,2]
[360771056,1747001431801,-9383.72639998,0.00014865,2]
[360771057,1747001431846,-898.46097204,0.00014865,2]
[360771058,1747001431858,-1271.39369592,0.00014865,2]
[360771060,1747001431942,-946.41893206,0.00014865,2]
[360771061,1747001431951,-500.0,0.00014873,2]
[360771062,1747001431961,-621.56354237,0.00014873,2]
[360771063,1747001431970,-4086.87446677,0.00014874,2]
[360771064,1747001431981,-2585.5999999,0.00014874,2]
[360771065,1747001431993,-5302.49000001,0.00014874,2]
[360771067,1747001432005,-525.03553332,0.00014874,2]
[360771068,1747001432014,-1000.0,0.00014881,2]
[360771069,1747001432024,-6026.2644668,0.00014882,2]
[360771087,1747001437395,-6473.7355332,0.00014882,2]
[360771088,1747001437406,-150.0,0.0001489,2]
[360771089,1747001437416,-151.0,0.00014891,2]
[360771090,1747001437428,-668.65185757,0.00014891,2]
[360771091,1747001437438,-155.0,0.00014891,2]
[360771092,1747001437448,-12500.0,0.00014891,2]
[360771093,1747001437457,-285.79733878,0.00014899,2]
[360771094,1747001437467,-285.79733878,0.000149,2]
[360771095,1747001437477,-186.05451278,0.000149,2]
[360771096,1747001437487,-12500.0,0.000149,2]
[360771097,1747001437496,-1794.25475259,0.000149,2]
[360771098,1747001437508,-1382.56401501,0.000149,2]
[360771099,1747001437518,-238.72409998,0.000149,2]
[360771100,1747001437528,-285.79733878,0.000149,2]
[360771101,1747001437537,-1145.0,0.00014921,2]
[360771102,1747001437547,-5938.0,0.00014921,2]
[360771103,1747001437557,-4026.0,0.00014921,2]
[360771104,1747001437566,-6816.0,0.00014921,2]
[360771105,1747001437576,-154.0,0.00014921,2]
[360771106,1747001437585,-832.0,0.00014921,2]
[360771107,1747001437595,-1197.4722072,0.00014924,2]
[360771108,1747001437604,-158.14,0.00014985,2]
[360771109,1747001437614,-150.184,0.00014998,2]
[360771110,1747001437624,-218.315,0.00014998,2]
[360771111,1747001437634,-164.262,0.00014998,2]
[360771112,1747001437643,-296.281,0.00014998,2]
[360771113,1747001437652,-150.0,0.00014998,2]
[360771114,1747001437662,-150.0,0.00014998,2]
[360771115,1747001437674,-278.03,0.00014998,2]
[360771116,1747001437684,-157.206,0.00014998,2]
[360771117,1747001437693,-1304.0,0.00014998,2]
[360771118,1747001437704,-929.0,0.00014998,2]
[360771119,1747001437713,-798.0,0.00014998,2]
[360771120,1747001437723,-627.0,0.00014998,2]
[360771122,1747001437732,-918.0,0.00014998,2]
[360771124,1747001437747,-1455.0,0.00014998,2]
[360771126,1747001437760,-583.0,0.00014998,2]
[360771127,1747001437777,-552.0,0.00014998,2]
[360771129,1747001437787,-1248.0,0.00014998,2]
[360771130,1747001437796,-10726.77352,0.00014998,2]
[360771131,1747001437806,-2001.363,0.00014999,2]
[360771132,1747001437816,-300.0,0.00014999,2]
[360771133,1747001437825,-300.0,0.00014999,2]
[360771134,1747001437834,-300.0,0.00014999,2]
[360771135,1747001437844,-250.18007473,0.00014999,2]
[360771136,1747001437853,-48138.01610191,0.00014999,2]
[360771137,1747001437878,-34054.54729566,0.00014999,2]
[360771139,1747001438220,-1110.17506426,0.00014999,2]
[360771140,1747001438246,-282.6119774,0.00014999,2]
[360771141,1747001439574,-879.0,0.00014921,2]
[360771142,1747001439584,-136563.50071824,0.00014999,2]
[360771143,1747001439754,-52249.29000004,0.00014999,2]
[360771151,1747001442593,-471.75623446,0.00014999,2]
[360771194,1747001446221,-2472.939046,0.00014999,2]
[360771196,1747001446269,-3690.48875578,0.00014999,2]
[360771197,1747001446331,-3900.65469987,0.00014999,2]
[360771198,1747001446450,-1186.768785,0.00014999,2]
[360771201,1747001615895,1000.0,0.00014026,2]
[360771204,1747001848653,902.5,0.00013699,2]
[360771205,1747002018289,676.04,0.00013997,2]
[360771206,1747002057931,582.59560185,0.000279,120]
[360771209,1747002162299,1388.43,0.00012066,2]
[360771210,1747002200979,158.18,0.00013968,2]
[360771215,1747002346019,23900.0,0.00013955,2]
[360771216,1747002419333,1852.42,0.00014114,2]
[360771217,1747002421598,250.0,0.00014089,2]
[360771239,1747002517434,2648.79936005,0.0001,2]
[360771241,1747002525640,13998.0547542,0.00013368,2]
[360771259,1747002628260,1000.0,0.00013907,2]
[360771266,1747002631706,-1388.43,0.0001433,2]
[360771267,1747002631716,-250.0,0.00014549,2]
[360771268,1747002631725,-372.02208279,0.00014695,2]
[360771269,1747002631734,-372.02208275,0.00014718,2]
[360771270,1747002631744,-372.02208275,0.00014741,2]
[360771271,1747002631754,-372.02208275,0.00014763,2]
[360771272,1747002631763,-207.4,0.00014769,2]
[360771273,1747002631773,-150.0,0.00014777,2]
[360771274,1747002631782,-300.0,0.00014777,2]
[360771275,1747002631791,-53334.61799049,0.00014778,2]
[360771276,1747002631803,-96771.38797227,0.00014778,2]
[360771277,1747002631814,-45513.73422704,0.00014778,2]
[360771278,1747002631825,-934.33,0.00014778,2]
[360771279,1747002631837,-1823.62535614,0.00014778,2]
[360771280,1747002631847,-372.02208275,0.00014786,2]
[360771281,1747002631857,-500.0,0.00014795,2]
[360771282,1747002631866,-285.09447966,0.00014795,2]
[360771283,1747002631875,-372.02208275,0.00014809,2]
[360771284,1747002631885,-372.02208275,0.00014832,2]
[360771285,1747002631895,-372.02208275,0.00014854,2]
[360771286,1747002631904,-372.02208275,0.00014877,2]
[360771287,1747002631914,-382.85962469,0.0001489,2]
[360771288,1747002631923,-382.85962463,0.00014891,2]
[360771289,1747002631932,-382.85962463,0.00014892,2]
[360771290,1747002631942,-382.85962463,0.00014893,2]
[360771291,1747002631952,-382.85962463,0.00014894,2]
[360771292,1747002631961,-382.85962463,0.00014896,2]
[360771294,1747002631971,-66.96914504,0.00014897,2]
[360771297,1747002632017,-315.89047959,0.00014897,2]
[360771299,1747002632027,-382.85962463,0.00014898,2]
[360771301,1747002632036,-382.85962463,0.00014899,2]
[360771303,1747002632046,-117.85987445,0.000149,2]
[360771304,1747002632057,-123.90812555,0.000149,2]
[360771305,1747002632067,-151.87337538,0.000149,2]
[360771306,1747002632076,-1548.51347137,0.000149,2]
[360771307,1747002637666,-3669.25000039,0.000149,2]
[360771308,1747002637679,-3365.73286742,0.000149,2]
[360771309,1747002637743,-3916.50366082,0.000149,2]
[360771310,1747002637752,-372.02208275,0.000149,2]
[360771311,1747002637762,-177.83689229,0.000149,2]
[360771312,1747002637771,-382.85962463,0.000149,2]
[360771313,1747002637780,-190.78567091,0.000149,2]
[360771314,1747002637790,-1765.0264736,0.00014924,2]
[360771315,1747002637799,-491.6423,0.00014925,2]
[360771316,1747002637813,-635.52069171,0.00014973,2]
[360771317,1747002637823,-500.0,0.00014973,2]
[360771318,1747002637834,-500.0,0.00014973,2]
[360771319,1747002637844,-500.0,0.00014973,2]
[360771320,1747002637854,-154.31402777,0.00014973,2]
[360771321,1747002637863,-500.0,0.00014973,2]
[360771322,1747002637873,-500.0,0.00014973,2]
[360771323,1747002637883,-500.0,0.00014973,2]
[360771324,1747002637894,-500.0,0.00014973,2]
[360771325,1747002637904,-500.0,0.00014973,2]
[360771326,1747002637914,-644.27098685,0.00014978,2]
[360771328,1747002637924,-151.0,0.00014979,2]
[360771330,1747002637934,-155.0,0.00014979,2]
[360771332,1747002637944,-668.65185757,0.00014979,2]
[360771334,1747002637953,-47409.516,0.00014988,2]
[360771336,1747002637963,-34681.24237187,0.00014988,2]
[360771340,1747002637988,-7918.61196079,0.00014988,2]
[360771341,1747002637999,-1042.82955653,0.00014988,2]
[360771347,1747002639737,-2881.1945751,0.00014988,2]
[360771348,1747002639879,-925.2436,0.00014988,2]
[360771349,1747002639891,-1234.69500997,0.00014988,2]
[360771350,1747002639959,-378.925,0.00014988,2]
[360771363,1747002645639,-238.72409998,0.000149,2]
[360771364,1747002645649,-26054.93271172,0.00014988,2]
[360771365,1747002645850,-1808.19999996,0.00014988,2]
[360771368,1747002910083,857.37,0.00013699,2]
[360771371,1747002952321,10440.04,0.00014029,2]
[360771372,1747002997425,258.5,0.00014004,2]
[360771373,1747003184552,181.43,0.00013856,2]
[360771374,1747003184751,181.43,0.00013926,2]
[360771375,1747003232307,1309.78,0.00011935,2]
[360771376,1747003232546,1309.78,0.00014199,2]
[360771377,1747003276064,158.18,0.00013849,2]
[360771378,1747003325856,3478.01,0.00013851,2]
[360771379,1747003394639,16337.47,0.00013853,2]
[360771380,1747003494235,250.0,0.00013853,2]
[360771381,1747003510033,23900.0,0.00013851,2]
[360771444,1747003618902,1595.87,0.00013825,2]
[360771455,1747003742838,1000.0,0.00013824,2]
[360771476,1747003831777,-378.84145252,0.0001428,2]
[360771477,1747003831787,-155.0,0.00014281,2]
[360771478,1747003831796,-151.0,0.00014281,2]
[360771479,1747003831805,-668.65185757,0.00014281,2]
[360771480,1747003831815,-207.4,0.00014281,2]
[360771481,1747003831824,-1200.0,0.00014288,2]
[360771482,1747003831833,-300.0,0.00014288,2]
[360771483,1747003831843,-4413.65,0.00014289,2]
[360771484,1747003831852,-363.0,0.00014679,2]
[360771485,1747003831862,-1000.0,0.0001468,2]
[360771486,1747003831873,-150.0,0.000147,2]
[360771487,1747003831882,-1000.0,0.00014708,2]
[360771488,1747003831892,-1000.0,0.00014712,2]
[360771489,1747003831901,-150.0,0.00014713,2]
[360771490,1747003831910,-150.0,0.00014713,2]
[360771491,1747003831919,-150.0,0.0001472,2]
[360771492,1747003831929,-1000.0,0.00014722,2]
[360771493,1747003831938,-150.0,0.00014728,2]
[360771494,1747003831947,-150.0,0.00014728,2]
[360771495,1747003831956,-150.0,0.00014731,2]
[360771496,1747003831965,-150.0,0.00014737,2]
[360771497,1747003831975,-150.0,0.00014741,2]
[360771498,1747003831985,-150.0,0.00014742,2]
[360771499,1747003831994,-150.0,0.00014745,2]
[360771500,1747003832004,-150.0,0.00014747,2]
[360771501,1747003832013,-150.0,0.00014749,2]
[360771502,1747003832023,-150.0,0.00014753,2]
[360771503,1747003832033,-150.0,0.00014755,2]
[360771504,1747003832043,-150.0,0.00014756,2]
[360771505,1747003832052,-150.0,0.00014757,2]
[360771506,1747003832061,-1000.0,0.00014758,2]
[360771507,1747003832071,-150.0,0.00014758,2]
[360771508,1747003832081,-150.0,0.00014758,2]
[360771509,1747003832091,-1000.0,0.00014761,2]
[360771510,1747003832100,-150.0,0.00014764,2]
[360771511,1747003832110,-150.0,0.00014766,2]
[360771512,1747003832122,-150.0,0.00014766,2]
[360771513,1747003832136,-150.0,0.00014767,2]
[360771514,1747003832147,-150.0,0.00014767,2]
[360771515,1747003832156,-150.0,0.00014772,2]
[360771517,1747003832166,-275.63173876,0.00014774,2]
[360771518,1747003832176,-150.0,0.00014776,2]
[360771519,1747003832186,-150.0,0.00014778,2]
[360771520,1747003832199,-150.0,0.0001478,2]
[360771521,1747003832211,-150.0,0.00014782,2]
[360771522,1747003832227,-150.0,0.00014782,2]
[360771523,1747003832237,-150.0,0.00014784,2]
[360771524,1747003832247,-150.0,0.00014787,2]
[360771525,1747003832256,-150.0,0.00014788,2]
[360771526,1747003832266,-150.0,0.00014789,2]
[360771527,1747003832276,-150.0,0.00014792,2]
[360771528,1747003832287,-150.0,0.00014792,2]
[360771529,1747003832298,-150.0,0.00014793,2]
[360771530,1747003832308,-150.0,0.00014793,2]
[360771531,1747003832318,-150.0,0.00014794,2]
[360771532,1747003832328,-150.0,0.00014797,2]
[360771533,1747003832338,-1000.0,0.00014798,2]
[360771534,1747003832348,-150.0,0.00014801,2]
[360771535,1747003832358,-150.0,0.00014804,2]
[360771536,1747003832367,-150.0,0.00014813,2]
[360771537,1747003832377,-150.0,0.00014814,2]
[360771539,1747003832387,-549.56613576,0.00014815,2]
[360771541,1747003832399,-1000.0,0.00014816,2]
[360771543,1747003832409,-150.0,0.00014818,2]
[360771545,1747003832418,-150.0,0.00014819,2]
[360771547,1747003832428,-693.3919763,0.00014829,2]
[360771549,1747003832438,-150.0,0.00014829,2]
[360771551,1747003832447,-150.0,0.00014829,2]
[360771553,1747003832457,-150.0,0.00014833,2]
[360771555,1747003832466,-150.0,0.00014833,2]
[360771557,1747003832477,-1000.0,0.00014833,2]
[360771559,1747003832487,-1000.0,0.00014834,2]
[360771561,1747003832497,-150.0,0.00014837,2]
[360771563,1747003832507,-947.47518921,0.0001484,2]
[360771565,1747003832517,-1000.0,0.0001484,2]
[360771567,1747003832526,-150.0,0.00014842,2]
[360771569,1747003832536,-150.0,0.00014843,2]
[360771571,1747003832547,-150.0,0.00014844,2]
[360771573,1747003832556,-150.0,0.00014846,2]
[360771575,1747003832566,-150.0,0.00014847,2]
[360771577,1747003832576,-150.0,0.00014847,2]
[360771578,1747003832586,-150.0,0.00014847,2]
[360771579,1747003832595,-1000.0,0.00014848,2]
[360771580,1747003832606,-150.0,0.00014851,2]
[360771581,1747003832616,-150.0,0.00014852,2]
[360771582,1747003832625,-1000.0,0.00014856,2]
[360771583,1747003832635,-1000.0,0.00014858,2]
[360771584,1747003832647,-150.0,0.00014862,2]
[360771585,1747003832656,-150.0,0.00014863,2]
[360771586,1747003832666,-150.0,0.00014864,2]
[360771587,1747003832675,-150.0,0.00014866,2]
[360771588,1747003832685,-150.0,0.00014866,2]
[360771589,1747003832695,-150.0,0.00014868,2]
[360771590,1747003832705,-150.0,0.0001487,2]
[360771591,1747003832715,-150.0,0.00014873,2]
[360771592,1747003832724,-150.0,0.00014881,2]
[360771593,1747003832734,-12500.0,0.00014882,2]
[360771594,1747003832743,-150.0,0.00014886,2]
[360771595,1747003832753,-150.0,0.00014888,2]
[360771596,1747003832763,-150.0,0.00014888,2]
[360771597,1747003832773,-186.01104138,0.00014888,2]
[360771598,1747003832783,-150.0,0.00014891,2]
[360771599,1747003832792,-12500.0,0.00014891,2]
[360771600,1747003832802,-150.0,0.00014892,2]
[360771601,1747003832811,-150.0,0.00014894,2]
[360771602,1747003832821,-150.0,0.00014895,2]
[360771603,1747003832830,-150.0,0.00014896,2]
[360771604,1747003832840,-150.0,0.00014896,2]
[360771605,1747003832850,-150.0,0.00014896,2]
[360771606,1747003832859,-150.0,0.00014898,2]
[360771607,1747003832869,-177.83689229,0.00014899,2]
[360771608,1747003832879,-12500.0,0.000149,2]
[360771609,1747003832889,-150.0,0.000149,2]
[360771610,1747003832900,-4814.45507503,0.000149,2]
[360771611,1747003832910,-153.3588723,0.000149,2]
[360771612,1747003832920,-1427.58819442,0.000149,2]
[360771613,1747003832929,-159.14939998,0.000149,2]
[360771614,1747003832939,-1000.0,0.000149,2]
[360771615,1747003832949,-382.85962463,0.000149,2]
[360771616,1747003832958,-186.01104137,0.000149,2]
[360771617,1747003832968,-150.0,0.00014901,2]
[360771618,1747003832978,-150.0,0.00014901,2]
[360771619,1747003832988,-1000.0,0.00014903,2]
[360771620,1747003832998,-150.0,0.00014907,2]
[360771621,1747003833009,-150.0,0.0001491,2]
[360771622,1747003833018,-150.0,0.0001491,2]
[360771623,1747003833028,-150.0,0.00014912,2]
[360771624,1747003833037,-150.0,0.00014913,2]
[360771625,1747003833047,-1000.0,0.00014916,2]
[360771626,1747003833057,-1000.0,0.00014919,2]
[360771627,1747003833068,-150.0,0.0001492,2]
[360771628,1747003833077,-150.0,0.00014922,2]
[360771629,1747003833087,-1765.0264736,0.00014924,2]
[360771630,1747003833097,-1000.0,0.00014924,2]
[360771631,1747003833107,-491.6423,0.00014925,2]
[360771632,1747003833119,-150.0,0.00014927,2]
[360771633,1747003833129,-150.0,0.00014931,2]
[360771634,1747003833139,-150.0,0.00014933,2]
[360771635,1747003833150,-1000.0,0.00014933,2]